Cogmind - Beta 17 @@@ ROGUE MODE // 2026.07.15 @ 04:53:00 Player: ChCbias Result: Destroyed by S-43 Plague with Heavy Machine Gun Performance ------------- Evolutions (8) 4000 Regions Visited (19) 3800 Robots Destroyed (240) 1200 Value Destroyed (10122) 10122 Prototype IDs (41) 820 Alien Tech Used (6) 1200 Bonus (4401) 4401 TOTAL SCORE: 25543 Bonus ------- High Alert Combat Kills 332 Follower Combat Kills 50 Entered DSFs 500 Acquired ECA 300 Met Zhirov 300 Scanned by Researcher 1000 Met Sigix 2000 Friendly Fire -81 Cogmind --------- Core Integrity 0/1450 Matter 17/300 Energy 99/100 System Corruption 0% Temperature Cool (0) Movement Core (50) Location -2/Research Parts ------- > --- POWER (2) -------- (None) > --- PROPULSION (6) --- (None) > --- UTILITY (9) ------ Improved Power Shielding > --- WEAPON (6) ------- (None) > --- INVENTORY (5) ---- Light Quantum Reactor Advanced Energy Well (500) Subatomic Replicator Precision Phase Gun Heavy Machine Gun Peak State ------------ > --- POWER ------------ Light Antimatter Reactor > --- PROPULSION ------- High-density Centrium Heavy Treads High-density Centrium Heavy Treads Improved Antigrav System > --- UTILITY ---------- Coolant Network Advanced Energy Well Improved Phase Shifter Phase Armor Experimental EM Shield Experimental Force Field Advanced Hacking Suite > --- WEAPON ----------- Enhanced Nova Cannon Graviton Cannon Core Stripper Makeshift Sword Lance > --- INVENTORY -------- Vortex Chain Reactor Thermal Barrier Authchip [Device] Micro-nuke Launcher [Rating: 202] Favorites ----------- Power Improved Deuterium Engine Engine Improved Deuterium Engine Power Core Light Nuclear Core Reactor Light Antimatter Reactor Propulsion Light Treads Treads Light Treads Leg Advanced Myomer Leg Wheel Armored Huge Wheel Hover Unit Improved Antigrav System Flight Unit Impulse Thruster Array Utility High-capacity Storage Unit Device Encrypted Comm Array Storage High-capacity Storage Unit Processor Targeting Computer Hackware Advanced Hacking Suite Protection Light Armor Plating Artifact Phase Armor Weapon Improved Assault Rifle Energy Gun Wave Gun Energy Cannon Heavy Phase Cannon Ballistic Gun Improved Assault Rifle Ballistic Cannon Graviton Cannon Launcher Improved Grenade Launcher Special Weapon Improved Plasma Cutter Impact Weapon Core Stripper Slashing Weapon Makeshift Sword Piercing Weapon Lance Build | -11 -10 -9 -8 -8 -8 -6 -6 -5 -5 -5 -4 -4 -4 -4 -3 -3 -3 -3 -2 ------- Run | Yrd Mat Mat Mat Sto Rec Fac DSF Fac Upp Upp Fac Upp Upp Zhi Pro Res Qua Sec Res Slots Evolved 16 | . . 2 2 . . 4 . 2 . . 2 . . . . 2 . . 2 Power 1 | . . . . . . . . . . . . . . . . . . . 1 Propulsion 4 | . . . 2 . . 1 . . . . . . . . . . . . 1 Utility 7 | . . 1 . . . 2 . . . . 2 . . . . 2 . . . Weapon 4 | . . 1 . . . 1 . 2 . . . . . . . . . . . Parts Attached 205 | 6 6 18 15 16 1 7 3 26 6 2 19 2 11 9 5 17 25 4 7 Power 23 | 1 1 2 2 . . . . 4 . . 1 . 3 1 2 2 2 1 1 Engine 8 | 1 1 1 2 . . . . 2 . . . . . . . . 1 . . Core 7 | . . 1 . . . . . 2 . . 1 . 3 . . . . . . Reactor 8 | . . . . . . . . . . . . . . 1 2 2 1 1 1 Propulsion 66 | 2 1 7 10 4 1 2 2 4 3 1 7 . 1 3 1 6 7 1 3 Treads 42 | 2 1 7 10 4 1 2 2 4 3 . . . . . . . 5 . 1 Leg 5 | . . . . . . . . . . . 1 . . 3 . . . 1 . Wheel 1 | . . . . . . . . . . 1 . . . . . . . . . Hover 10 | . . . . . . . . . . . 1 . . . . 6 1 . 2 Flight 8 | . . . . . . . . . . . 5 . 1 . 1 . 1 . . Utility 55 | 1 1 4 1 5 . 2 . 7 3 1 6 1 2 3 . 6 10 1 1 Device 26 | . . 1 . . . 1 . 3 1 1 5 1 1 1 . 4 6 1 . Storage 4 | 1 . 1 . . . . . . 1 . . . . 1 . . . . . Processor 7 | . 1 . . 2 . 1 . 1 . . 1 . 1 . . . . . . Hackware 1 | . . . . . . . . . . . . . . . . 1 . . . Protection 16 | . . 2 1 3 . . . 3 1 . . . . 1 . 1 3 . 1 Artifact 1 | . . . . . . . . . . . . . . . . . 1 . . Weapon 61 | 2 3 5 2 7 . 3 1 11 . . 5 1 5 2 2 3 6 1 2 Energy Gun 13 | 1 1 2 . . . . . 3 . . 1 1 2 . 1 . . . 1 Energy Cannon 9 | . . . . . . . . 4 . . 1 . . . . 3 1 . . Ballistic Gun 24 | 1 2 3 1 5 . 3 1 4 . . . . . 1 1 . 1 . 1 Ballistic Cannon 4 | . . . . . . . . . . . 2 . . . . . 2 . . Launcher 3 | . . . 1 1 . . . . . . . . . . . . . 1 . Special Weapon 1 | . . . . . . . . . . . 1 . . . . . . . . Impact Weapon 2 | . . . . 1 . . . . . . . . . . . . 1 . . Slashing Weapon 4 | . . . . . . . . . . . . . 3 1 . . . . . Piercing Weapon 1 | . . . . . . . . . . . . . . . . . 1 . . Special Melee Weapon . | . . . . . . . . . . . . . . . . . . . . Unidentified Prototypes 29 | . . 3 . 1 . . . 1 . . . . . 7 . . 14 2 1 Corrupted Parts 1 | . . . . . . . . . . . . . . . . . 1 . . System Corruption 1 | . . . . . . . . . . . . . . . . . 1 . . Parts Lost 82 | . 1 1 1 3 . . . 20 5 1 8 3 4 . 5 1 21 1 7 Power 6 | . . . . . . . . 1 . . . . 1 . 1 . 3 . . Propulsion 23 | . . . . . . . . 8 4 . 1 1 . . 1 . 3 . 5 Utility 26 | . . 1 1 1 . . . 2 1 1 4 1 1 . . . 11 1 1 Weapon 27 | . 1 . . 2 . . . 9 . . 3 1 2 . 3 1 4 . 1 Highest Loss Streak 13 | . 1 1 1 3 . . . 11 4 2 4 5 4 . 4 1 13 1 5 To Critical Strikes 3 | . . . . . . . . 1 . . . . . . . . 1 . 1 Average Backups 11 | 3 7 15 19 19 20 17 18 18 4 5 4 2 3 4 3 4 3 2 3 Power 1 | . 1 1 1 1 1 1 1 1 . . . . . 1 1 . . . . Propulsion 2 | 2 3 5 4 4 5 4 5 4 . . . . . . 1 2 . . . Utility 3 | . 1 2 5 6 8 6 6 7 2 2 1 1 . . 1 1 1 . . Weapon 3 | . 1 5 7 6 5 4 5 3 1 2 2 1 1 2 . . 1 . 1 Tool/Special . | . . . . . . . . . . . . . . . . . . . . Unused Backups 32 | . 3 4 6 2 . . . 9 . . . . . 2 . . 5 . 1 Power 3 | . . 1 . . . . . 1 . . . . . . . . 1 . . Propulsion 8 | . 3 2 . . . . . . . . . . . . . . 3 . . Utility 11 | . . . 2 1 . . . 7 . . . . . . . . 1 . . Weapon 8 | . . 1 4 1 . . . . . . . . . 2 . . . . . Tool/Special 2 | . . . . . . . . 1 . . . . . . . . . . 1 Average Slot Usage (%) 83 | . 89 98 99 99 100 99 100 92 38 12 43 56 61 77 89 93 69 23 16 Engine 4 | . 14 9 9 9 9 6 6 2 . . . . . . . . . . . Reactor 1 | . . . . . . . . . . . . . . 4 4 4 3 1 3 Treads 18 | . 28 22 35 36 36 33 33 26 9 . . . . . . . 7 9 4 Leg 1 | . . . . . . . . . . . . . . 13 15 1 . 1 2 Hover 1 | . . . . . . . . . . . 2 . . . . 19 5 . 1 Flight 1 | . . . . . . . . . . . 6 14 12 4 4 . . . . Device 6 | . . 1 . . . 5 6 9 3 2 9 14 13 10 10 14 16 1 2 Storage 6 | . 14 11 9 9 9 6 6 4 3 1 . . . 4 5 3 3 1 2 Processor 8 | . 3 11 9 9 9 12 13 7 5 5 8 10 11 15 15 14 2 . . Protection 5 | . . 7 8 8 9 6 6 3 4 . . . . 4 5 5 3 3 . Energy Gun 2 | . 6 7 . . . . . 4 3 . 2 4 7 . . . . . . Energy Cannon 3 | . . . . . . . . 18 . . 2 . . . . 9 3 . . Ballistic Gun 13 | . 21 25 26 26 27 25 26 7 3 . . . . . 4 1 . . . Slashing Weapon 3 | . . . . . . . . . . . . . 4 16 20 14 5 . . Peak Build Rating 202 | 6 8 20 28 30 32 48 52 83 43 20 93 78 101 118 117 126 202 82 79 Average Rating 59 | 4 6 16 23 28 31 42 49 69 30 16 50 73 79 94 100 117 160 63 42 On Entrance 49 | . 6 8 20 28 30 32 48 52 24 10 20 78 78 98 116 96 123 51 70 Avg Prop Armor Cover (%) 12 | . . . . . . . . 5 33 32 12 . . 3 3 3 10 40 28 Naked Turns 32 | . . . . . . . . 5 . . . . . . . . . . 27 Heaviest Build 110 | 12 13 60 65 66 66 73 74 110 24 1 35 27 33 42 40 59 105 25 28 Greatest Support 180 | 40 40 40 84 84 84 114 114 120 76 3 36 36 36 90 90 90 180 25 180 Greatest Overweight (x) 11 | . . 1 . . . . . 4 . . 11 . . 4 . 2 1 3 1 Average Overweight (x) . | . . . . . . . . . . . . . . . . . . . . Largest Inventory Capacity 20 | 8 8 20 20 20 20 20 20 20 5 5 5 5 5 5 5 5 5 5 5 Average Capacity 12 | 7 8 19 20 20 20 20 20 19 5 5 5 5 5 5 5 5 5 5 5 Most Carried 20 | 6 8 20 20 20 20 19 20 20 5 5 5 3 5 5 5 5 5 5 5 Average Carried 11 | 3 7 15 19 19 20 17 18 18 4 5 4 2 3 4 4 4 4 4 4 Final Capacity 20 | 8 8 20 20 20 20 20 20 5 5 5 5 5 5 5 5 5 5 5 5 Final Carried 20 | 6 8 20 20 20 20 18 20 4 5 5 3 2 5 5 5 5 5 4 5 Class Distribution -------------------- 32% | Mutant 29% | Gunner 11% | Scavenger-Executioner 7% | Derelict-Mutant 6% | Commander-Gunner 4% | Scavenger-Gunner 3% | Tank Dominant Class ---------------- Mutant | -10/Materials Gunner | -9/Materials Gunner | -8/Materials Gunner | -8/Storage Commander-Gunner | -8/Recycling Commander-Skirmisher | -6/Factory Scavenger-Skirmisher | -6/DSF Scavenger-Executioner | -5/Factory Mutant | -5/Upper Caves Mutant | -5/Upper Caves Mutant | -4/Factory Mutant | -4/Upper Caves Derelict-Gunner | -4/Upper Caves Mutant | -4/Zhirov Derelict-Mutant | -3/Proximity Caves Gunner | -3/Research Mutant | -3/Quarantine Mutant | -3/Section 7 Mutant | -2/Research Resources | -11 -10 -9 -8 -8 -8 -6 -6 -5 -5 -5 -4 -4 -4 -4 -3 -3 -3 -3 -2 ----------- Run | Yrd Mat Mat Mat Sto Rec Fac DSF Fac Upp Upp Fac Upp Upp Zhi Pro Res Qua Sec Res Matter Collected 6238 | 260 298 585 568 1012 170 . 223 855 253 33 118 182 248 . 280 209 944 . . Remotely . | . . . . . . . . . . . . . . . . . . . . Salvage Created 10426 | . 331 1904 1029 1484 453 . 302 1950 125 . 128 169 212 . 374 705 1169 9 82 Parts 568 | . 16 118 82 79 24 . 19 76 5 . 12 4 10 . 13 36 56 5 13 Haulers Intercepted 9 | . 1 3 . 5 . . . . . . . . . . . . . . . Recyclers Shooed 4 | . . 1 2 1 . . . . . . . . . . . . . . . Parts Field Recycled . | . . . . . . . . . . . . . . . . . . . . Retrieved Matter . | . . . . . . . . . . . . . . . . . . . . Parts Self-Destructed 20 | . . . . . . . . . 2 . . 3 6 . 9 . . . . Prevented 1 | . . . . . . . . . 1 . . . . . . . . . . Parts Restored . | . . . . . . . . . . . . . . . . . . . . Kills | -11 -10 -9 -8 -8 -8 -6 -6 -5 -5 -5 -4 -4 -4 -4 -3 -3 -3 -3 -2 ------- Run | Yrd Mat Mat Mat Sto Rec Fac DSF Fac Upp Upp Fac Upp Upp Zhi Pro Res Qua Sec Res Combat Hostiles Destroyed 193 | . 7 36 23 22 5 . 7 39 1 . 5 6 5 . 7 12 14 . 4 Melee 21 | . . . . . . . . 1 . . . . 1 . 7 12 . . . Guns 118 | . 7 36 23 18 5 . 7 16 1 . 3 . 1 . . . . . 1 Cannons 40 | . . . . . . . . 16 . . 2 6 3 . . . 13 . . AOE 13 | . . . . 4 . . . 6 . . . . . . . . . . 3 Classes Destroyed 21 | . 5 5 3 . 1 . 2 2 1 . . . . . . . 2 . . Worker 11 | . 1 2 . 1 . . . 4 . . . . . . . 2 . . 1 Builder 8 | . . 1 . 1 . . . 1 . . . . . . . 1 3 1 . Tunneler 1 | . 1 . . . . . . . . . . . . . . . . . . Hauler 9 | . 1 3 . 5 . . . . . . . . . . . . . . . Recycler 4 | . . 2 . 1 1 . . . . . . . . . . . . . . Operator 5 | . . . 2 2 . . . . . . . . . . . . 1 . . Watcher 5 | . . . 1 2 . . . . . . . . . . . . 2 . . Swarmer 50 | . 3 . 5 3 . . 3 7 1 . 5 5 4 . 4 6 . . 4 Cutter 3 | . . . . . . . . 3 . . . . . . . . . . . Saboteur 1 | . . . . . . . . 1 . . . . . . . . . . . Grunt 73 | . 4 26 8 12 . . . 16 . . . . . . 2 3 2 . . Brawler 5 | . . 1 1 . 1 . . 2 . . . . . . . . . . . Duelist 1 | . . 1 . . . . . . . . . . . . . . . . . Researcher 4 | . . . . . . . . . . . . . . . . . 3 1 . Sentry 28 | . . 8 6 7 1 . . 3 . . . . 1 . 1 1 . . . Specialist 2 | . . . . . . . 2 . . . . . . . . . . . . Hunter 10 | . . . 3 . . . 1 2 . . . . . . . 2 2 . . Programmer 17 | . . . . . 3 . . 5 . . . 1 . . . . 8 . . Heavy 1 | . . . . . . . 1 . . . . . . . . . . . . Lightning 1 | . . . . . . . . . . . . . . . . . 1 . . Fortress 1 | . . . . . . . . . . . . . . . . . 1 . . Samaritan 3 | . . . . . . . . . 2 . . . 1 . . . . . . Best Kill Streak 8 | . 4 6 6 8 2 . 3 8 1 . 3 4 4 . 4 8 5 1 5 Combat Bots Only 6 | . 4 6 6 6 2 . 3 6 1 . 3 4 4 . 4 4 3 . 4 Max Kills in Single Turn 4 | . 1 2 2 3 1 . 1 3 1 . 1 1 1 . 2 1 1 1 4 Gunslinging 1 | . . 1 1 . . . . . . . . . . . . . . . . Exploded 3 | . . . . 3 . . . 2 . . . . . . . . . . 3 Melee 2 | . . . . . . . . 1 . . . . 1 . 2 1 . . . Uniques/NPCs Destroyed . | . . . . . . . . . . . . . . . . . . . . Combat | -11 -10 -9 -8 -8 -8 -6 -6 -5 -5 -5 -4 -4 -4 -4 -3 -3 -3 -3 -2 -------- Run | Yrd Mat Mat Mat Sto Rec Fac DSF Fac Upp Upp Fac Upp Upp Zhi Pro Res Qua Sec Res Hostile Shots Fired 1636 | . 46 127 99 83 5 . 28 223 71 3 160 35 44 . 57 79 337 33 206 Missed 559 | . 9 36 27 26 2 . 11 55 22 . 74 20 17 . 16 32 107 18 87 Hits 1077 | . 37 91 72 57 3 . 17 168 49 3 86 15 27 . 41 47 230 15 119 Melee 21 | . . . 3 . . . . 13 1 . 4 . . . . . . . . Projectile 1056 | . 37 91 69 57 3 . 17 155 48 3 82 15 27 . 41 47 230 15 119 AOE 3 | . . . . . . . . 3 . . . . . . . . . . . Critical Strikes 51 | . 1 1 1 . . . . 13 3 . 2 . . . 1 2 24 . 3 Part Disruptions 1 | . . . . . . . . . . . . . . . . . 1 . . Actively Blocked 1 | . . . . . . . . . . . . . . . . . 1 . . Damage Taken 20195 | . 434 1147 1037 905 79 . 301 3912 978 56 1384 234 411 . 948 903 4306 466 2694 Core 4038 | . 39 166 116 83 15 . 35 448 271 18 398 43 141 . 280 73 365 91 1456 Absorbed by Shields 462 | . . . . . . . 92 . . . 129 . . . . . 241 . . Redirected to Shielding 178 | . . . . . . . . . . . . . . . 19 109 . 50 . Ignored by Resistances 1374 | . . . . . . . . . 13 . . . . . . . 1361 . . Regen/Repaired (Parts) 381 | . . 222 . . . . . 159 . . . . . . . . . . . Core Remaining (%) 63 | 100 84 58 . . 61 . 95 . . 26 . . . . 21 . . 59 . Volleys Fired 449 | . 30 89 53 67 13 . 14 63 11 . 10 22 11 . . 3 51 8 4 Largest 6 | . 2 3 3 3 3 . 4 6 2 . 2 2 3 . . 3 3 1 1 Hottest 522 | . 70 105 69 82 69 . 112 522 108 . 105 130 195 . . 243 232 49 94 Shots Fired 1238 | . 60 264 157 199 40 . 55 249 22 . 13 31 21 . 2 7 105 9 4 Gun 952 | . 60 264 156 197 40 . 55 130 22 . 5 7 10 . 2 1 . . 3 Cannon 260 | . . . . . . . . 110 . . 4 24 11 . . 6 105 . . Launcher 22 | . . . 1 2 . . . 9 . . . . . . . . . 9 1 Special 4 | . . . . . . . . . . . 4 . . . . . . . . Kinetic 886 | . 36 191 156 197 40 . 55 84 11 . . 24 11 . 2 1 76 . 2 Thermal 320 | . 24 73 . . . . . 156 11 . 13 7 6 . . . 29 . 1 Explosive 22 | . . . 1 2 . . . 9 . . . . . . . . . 9 1 Electromagnetic 10 | . . . . . . . . . . . . . 4 . . 6 . . . Robot Hit Streak 31 | . 10 19 20 31 24 . 8 16 26 . 2 6 10 . . 1 8 2 4 Robot Miss Streak 5 | . 4 4 2 4 1 . 5 5 . . 4 4 5 . . 2 4 2 1 Penetration Max 1 | . . . . . . . . 1 . . . . . . . . . . . Secondary Targets 20 | . 2 8 3 2 1 . 2 2 . . . . . . . . . . . Max Gunslinging Chain 1 | . 1 1 1 1 1 . 1 1 . . . . . . . . . . . Shots Hit Robots 873 | . 39 182 114 146 29 . 34 150 21 . 5 15 11 . 21 35 66 2 3 Core Hits 444 | . 22 70 50 62 12 . 25 98 7 . 6 7 8 . 10 22 33 5 7 Critical Kills 2 | . . . . . . . . 2 . . . . . . . . . . . Critical Parts Destroyed 2 | . . . . 1 . . . 1 . . . . . . . . . . . Critical Strikes 34 | . 4 9 . 1 . . . 4 . . . . 1 . 3 5 7 . . Burn 14 | . 4 9 . . . . . 1 . . . . . . . . . . . Destroy 3 | . . . . . . . . 3 . . . . . . . . . . . Blast 7 | . . . . . . . . . . . . . 1 . . . 6 . . Smash 1 | . . . . 1 . . . . . . . . . . . . . . . Sever 9 | . . . . . . . . . . . . . . . 3 5 1 . . Melee Attacks 107 | . . . . 4 . . . 1 . . . . 3 . 30 48 21 . . Kinetic 1 | . . . . . . . . . . . . . . . . . 1 . . Impact 5 | . . . . 4 . . . 1 . . . . . . . . . . . Slashing 99 | . . . . . . . . . . . . . 3 . 30 48 18 . . Piercing 2 | . . . . . . . . . . . . . . . . . 2 . . Sneak Attacks 8 | . . . . 1 . . . . . . . . . . . 3 4 . . Combat Hostiles . | . . . . . . . . . . . . . . . . . . . . Follow-up Attacks 22 | . . . . . . . . . . . . . . . 10 8 4 . . Damage Inflicted 22468 | . 410 2586 1750 2638 555 . 593 5755 505 . 120 523 349 . 773 1325 3659 351 576 Guns 11078 | . 407 2563 1735 2294 548 . 593 2088 501 . 54 109 138 . . . . . 48 Cannons 5982 | . . . . . . . . 2343 . . 29 414 133 . . 51 3012 . . Explosions 2462 | . . . . 292 . . . 1296 . . . . . . . . . 351 523 Melee 2817 | . . . . 52 . . . . . . . . 78 . 773 1274 640 . . Ramming 111 | . 3 23 15 . 7 . . 28 4 . 19 . . . . . 7 . 5 Kinetic 11105 | . 220 1541 1735 2294 548 . 593 1297 233 . . 414 133 . . . 2076 . 21 Thermal 5923 | . 187 1022 . . . . . 3185 268 . 101 109 88 . . . 936 . 27 Explosive 2411 | . . . . 292 . . . 1245 . . . . . . . . . 351 523 Electromagnetic 101 | . . . . . . . . . . . . . 50 . . 51 . . . Impact 52 | . . . . 52 . . . . . . . . . . . . . . . Slashing 2684 | . . . . . . . . . . . . . 78 . 773 1274 559 . . Piercing 81 | . . . . . . . . . . . . . . . . . 81 . . Highest Corruption 25 | . . . 4 4 4 . 1 1 1 1 2 2 2 2 2 . 25 25 . Average Corruption 3 | . . . 4 4 4 . 1 1 1 1 1 2 2 2 2 . 5 25 . Corruption Purged . | . . . . . . . . . . . . . . . . . . . . Corruption Blocked . | . . . . . . . . . . . . . . . . . . . . Effects 130 | . . . 14 25 21 . 1 2 1 . 1 4 3 8 8 . 30 12 . Message Errors 29 | . . . 4 6 5 . . 1 . . . 1 . 1 3 . 6 2 . Matter Fused 29 | . . . 3 5 4 . . 1 1 . . 2 2 2 . . 9 . . Heat Flow Errors 21 | . . . 3 4 3 . . . . . . . . 1 2 . 2 6 . Energy Discharges 12 | . . . . 2 4 . . . . . 1 . . 2 . . 2 1 . Parts Rejected 3 | . . . 1 . . . . . . . . . . . 1 . 1 . . Data Loss (minor) 9 | . . . . 2 2 . . . . . . 1 . 2 . . 2 . . Data Loss (major) 3 | . . . 1 2 . . . . . . . . . . . . . . . Misfires 9 | . . . 1 2 2 . . . . . . . 1 . 2 . . 1 . Alerts 3 | . . . . 1 . . . . . . . . . . . . 1 1 . Misdirections 8 | . . . . . . . . . . . . . . . . . 7 1 . Weapon Failures 4 | . . . 1 1 1 . 1 . . . . . . . . . . . . Overload Shots . | . . . . . . . . . . . . . . . . . . . . Overflow Damage 500 | . . . . 52 . . . 107 . . . 43 . . 12 8 246 7 25 Projectiles 249 | . . . . . . . . 27 . . . 43 . . . . 179 . . Explosions 112 | . . . . . . . . 80 . . . . . . . . . 7 25 Melee 139 | . . . . 52 . . . . . . . . . . 12 8 67 . . Knockbacks 23 | . . . . . . . . . . . . 2 . . . . 21 . . Impact . | . . . . . . . . . . . . . . . . . . . . Kinetic 19 | . . . . . . . . . . . . 2 . . . . 17 . . Secondary 4 | . . . . . . . . . . . . . . . . . 4 . . Self-Inflicted Damage 684 | . . . . . . . . 434 . . 8 . . . . . 3 170 69 Shots 13 | . . . . . . . . 8 . . . . . . . . . 4 1 Rammed 25 | . 2 5 2 . 1 . . 3 1 . 5 . . . . . 2 . 4 Targets Rammed 27 | . 3 5 3 . 1 . . 3 1 . 5 . . . . . 2 . 4 Kicked . | . . . . . . . . . . . . . . . . . . . . Crushed 2 | . 1 . 1 . . . . . . . . . . . . . . . . Highest Temperature 603 | . 182 335 149 170 261 . 195 603 261 . 40 . 80 102 215 111 234 159 . Average Temperature 76 | . 56 103 21 25 51 . 82 141 127 . 20 . 51 55 99 60 40 67 . Received Heat Transfer 3405 | . 159 555 234 387 30 . . 959 423 27 35 . . . 90 105 347 9 45 Effects 21 | . . 13 . . 1 . . 4 3 . . . . . . . . . . Shutdowns 2 | . . . . . . . . 2 . . . . . . . . . . . Energy Bleed 3 | . . 2 . . 1 . . . . . . . . . . . . . . Interference 14 | . . 11 . . . . . . 3 . . . . . . . . . . Short Circuit 1 | . . . . . . . . 1 . . . . . . . . . . . Damage (minor) 1 | . . . . . . . . 1 . . . . . . . . . . . Siege Activations . | . . . . . . . . . . . . . . . . . . . . Martial Activations . | . . . . . . . . . . . . . . . . . . . . Shielding Activations . | . . . . . . . . . . . . . . . . . . . . Robots Disrupted . | . . . . . . . . . . . . . . . . . . . . Combat Hostiles . | . . . . . . . . . . . . . . . . . . . . Robots Corrupted 1 | . . . . . . . . . . . . . . . . . 1 . . Combat Hostiles . | . . . . . . . . . . . . . . . . . . . . Parts Fried 7 | . . . . 4 . . . . . . . . . . . . 3 . . Impact Corruptions 3 | . . . . 2 . . . . . . . . . . . . 1 . . Robots Melted . | . . . . . . . . . . . . . . . . . . . . Combat Hostiles . | . . . . . . . . . . . . . . . . . . . . Parts Melted 12 | . . 4 . . . . . 8 . . . . . . . . . . . Heat Transferred 9024 | . 851 2886 . . . . . 3638 407 . 224 148 148 . . . 685 . 37 Parts Sabotaged 2 | . . . . . . . . 2 . . . . . . . . . . . Parts Stolen . | . . . . . . . . . . . . . . . . . . . . Parts Stripped 18 | . . . . . . . . . . . . . . . . . 18 . . Power Chain Reactions . | . . . . . . . . . . . . . . . . . . . . Alert | -11 -10 -9 -8 -8 -8 -6 -6 -5 -5 -5 -4 -4 -4 -4 -3 -3 -3 -3 -2 ------- Run | Yrd Mat Mat Mat Sto Rec Fac DSF Fac Upp Upp Fac Upp Upp Zhi Pro Res Qua Sec Res Maximum Alert Level 3 | . . 2 2 2 1 . . 3 . . 1 . . . . 1 1 1 1 Low Security (%) 57 | 100 100 58 24 7 98 100 100 19 . . 38 . . . . 81 84 45 77 Level 1 26 | . . 14 64 73 1 . . 29 . . 61 . . . . 18 15 54 22 Level 2 14 | . . 27 11 18 . . . 43 . . . . . . . . . . . Level 3 1 | . . . . . . . . 8 . . . . . . . . . . . Level 4 . | . . . . . . . . . . . . . . . . . . . . Level 5 . | . . . . . . . . . . . . . . . . . . . . High Security . | . . . . . . . . . . . . . . . . . . . . Max Security . | . . . . . . . . . . . . . . . . . . . . Sterilizations 1 | . . . . . . . 1 . . . . . . . . . . . . Peak Influence 963 | . 114 452 435 448 202 50 137 963 . . 258 . . . . 256 288 259 262 Initial 255 | . . . 178 183 162 50 . 71 . . 255 . . . . . 138 104 145 Average 201 | . 31 230 255 304 70 12 80 419 . . 206 . . . . 111 97 195 138 Influence Increases 7361 | . 238 1031 641 711 159 55 209 1667 125 30 267 175 110 . 150 396 745 245 407 Destroy 0b10 Robot/C 3960 | . 140 720 460 440 100 . 160 780 20 . 100 120 100 . 140 240 340 20 80 Destroy 0b10 Robot/NC 240 | . 15 40 15 60 20 . . 30 . . . 5 . . . 15 30 5 5 Destroy Leader 788 | . 32 176 112 134 . . 30 130 . . 10 20 10 . 10 50 64 . 10 Allied During Kill 33 | . . . . . 14 . 19 . . . . . . . . . . . . Successful Hack 190 | . 36 15 5 5 25 5 . 43 . . 16 . . . . 10 18 12 . Disable Machine 450 | . . 15 . 45 . . . 240 . . . . . . . . 90 60 . Destroy Structure 540 | . . 5 19 27 . . . 234 . . 6 . . . . 6 68 148 27 Advance Influence 50 | . . . . . . 50 . . . . . . . . . . . . . Partial Spotted 75 | . . . . . . . . . . . 15 . . . . 45 . . 15 Lose Combat Pursuer 1035 | . 15 60 30 . . . . 210 105 30 120 30 . . . 30 135 . 270 Influence Decreases 7129 | . 238 608 629 728 577 55 72 841 597 115 453 242 170 93 150 150 805 172 434 Entered New Map 1931 | . . . 245 252 256 . . 66 357 95 151 82 30 93 . . 108 82 114 Time Decay 4176 | . 228 598 374 446 281 55 . 565 190 10 222 130 100 . 110 150 487 80 150 Search Patrol Dispatched 100 | . . . . . . . . . . . . . . . . . . . 100 Lost Part 800 | . 10 10 10 30 . . . 200 50 10 80 30 40 . 40 . 210 10 70 Lost Ally 122 | . . . . . 40 . 72 10 . . . . . . . . . . . Squads Dispatched 44 | . . 4 3 4 . 1 2 13 . . . . . . . 2 8 3 4 Investigation 8 | . . 1 . 1 . . . 2 . . . . . . . 1 . 1 2 Extermination 7 | . . . . . . . . 2 . . . . . . . . 4 . 1 Reinforcement 22 | . . 3 2 3 . 1 2 3 . . . . . . . 1 4 2 1 Assault 6 | . . . . . . . . 6 . . . . . . . . . . . Garrison 1 | . . . 1 . . . . . . . . . . . . . . . . Intercept . | . . . . . . . . . . . . . . . . . . . . Searches Triggered 1 | . . . . . . . . . . . . . . . . . . . 1 Construction Impeded 3 | . . 1 . . . . . . . . . . . . . . 1 1 . Haulers Reinforced 1 | . . . . . . . . 1 . . . . . . . . . . . Active Scanning Responses . | . . . . . . . . . . . . . . . . . . . . Cargo Convoy Interrupts . | . . . . . . . . . . . . . . . . . . . . Stealth | -11 -10 -9 -8 -8 -8 -6 -6 -5 -5 -5 -4 -4 -4 -4 -3 -3 -3 -3 -2 --------- Run | Yrd Mat Mat Mat Sto Rec Fac DSF Fac Upp Upp Fac Upp Upp Zhi Pro Res Qua Sec Res Distress Signals 13 | . 1 5 1 . . . . 2 . . 2 . . . . . 1 . 1 Communications Jammed . | . . . . . . . . . . . . . . . . . . . . Distress Signals . | . . . . . . . . . . . . . . . . . . . . Times Spotted 380 | . 16 57 31 29 14 . 8 58 13 4 26 7 6 . 7 20 43 5 36 Peak Tracking Total 17 | . 5 6 6 4 5 . 3 10 6 4 17 3 5 . 4 5 9 3 15 Tactical Retreats 36 | . 1 4 2 . . . . 5 3 1 4 2 . . . 2 6 1 5 ECM-based Alert Blocks 2 | . . . . . . . . . . . . . . . . . . 2 . Traps | -11 -10 -9 -8 -8 -8 -6 -6 -5 -5 -5 -4 -4 -4 -4 -3 -3 -3 -3 -2 ------- Run | Yrd Mat Mat Mat Sto Rec Fac DSF Fac Upp Upp Fac Upp Upp Zhi Pro Res Qua Sec Res Traps Triggered 11 | . 1 . . 1 . . . 3 . . 2 . . . . 1 . . 3 Indirectly . | . . . . . . . . . . . . . . . . . . . . Trap Hack Attempts . | . . . . . . . . . . . . . . . . . . . . Triggered . | . . . . . . . . . . . . . . . . . . . . Disarmed . | . . . . . . . . . . . . . . . . . . . . Reprogrammed . | . . . . . . . . . . . . . . . . . . . . Reused . | . . . . . . . . . . . . . . . . . . . . Traps Extracted . | . . . . . . . . . . . . . . . . . . . . Installed . | . . . . . . . . . . . . . . . . . . . . Triggered . | . . . . . . . . . . . . . . . . . . . . Machines | -11 -10 -9 -8 -8 -8 -6 -6 -5 -5 -5 -4 -4 -4 -4 -3 -3 -3 -3 -2 ---------- Run | Yrd Mat Mat Mat Sto Rec Fac DSF Fac Upp Upp Fac Upp Upp Zhi Pro Res Qua Sec Res Machines Disabled 30 | . . 1 . 3 . . . 16 . . . . . . . . 6 4 . Max in Single Turn 8 | . . 1 . 1 . . . 8 . . . . . . . . 1 1 . Garrison Access 6 | . . . . . . 1 . 3 . . 1 . . . . . 1 . . Machines Repaired . | . . . . . . . . . . . . . . . . . . . . Machines Dismantled . | . . . . . . . . . . . . . . . . . . . . Machines Sabotaged . | . . . . . . . . . . . . . . . . . . . . Overloaded Fab Kills . | . . . . . . . . . . . . . . . . . . . . Hacking | -11 -10 -9 -8 -8 -8 -6 -6 -5 -5 -5 -4 -4 -4 -4 -3 -3 -3 -3 -2 --------- Run | Yrd Mat Mat Mat Sto Rec Fac DSF Fac Upp Upp Fac Upp Upp Zhi Pro Res Qua Sec Res Machines Accessed 61 | . 6 5 4 4 6 2 . 7 . . 3 . 1 9 . 3 7 2 2 Terminals 35 | . 5 3 3 4 6 1 . 3 . . . . . . . 2 5 2 1 Fabricators 4 | . . . . . . . . 1 . . 1 . . . . 1 . . 1 Repair Stations 3 | . . 1 . . . . . 1 . . . . . . . . 1 . . Recycling Units 1 | . 1 . . . . . . . . . . . . . . . . . . Scanalyzers 4 | . . 1 1 . . . . 1 . . 1 . . . . . . . . Garrison Access 4 | . . . . . . 1 . 1 . . 1 . . . . . 1 . . Total Hacks 176 | . 19 21 11 10 18 4 . 13 . . 4 . 1 48 . 10 10 4 3 Successful 121 | . 10 18 4 4 7 2 . 8 . . 2 . 1 48 . 6 8 2 1 Failed 53 | . 9 3 6 6 11 2 . 5 . . 2 . . . . 3 2 2 2 Catastrophic 5 | . . . 1 . 2 . . . . . 1 . . . . . . . 1 Database Lockouts 2 | . . . 1 . . . . . . . . . . . . 1 . . . Manual 47 | . 14 5 9 6 6 . . 1 . . . . . . . 3 3 . . Terminals 89 | . 18 7 9 10 18 2 . 5 . . . . . . . 8 6 4 2 Fabricators 6 | . . . . . . . . 1 . . 2 . . . . 2 . . 1 Repair Stations 12 | . . 7 . . . . . 3 . . . . . . . . 2 . . Recycling Units 1 | . 1 . . . . . . . . . . . . . . . . . . Scanalyzers 12 | . . 7 2 . . . . 2 . . 1 . . . . . . . . Garrison Access 7 | . . . . . . 2 . 2 . . 1 . . . . . 2 . . Terminal Hacks 85 | . 7 3 1 3 5 1 . 3 . . . . 1 48 . 4 6 2 1 Record 44 | . . . . . . . . 1 . . . . . 36 . 2 3 2 . Part Schematic 9 | . 2 . . . 3 . . . . . . . . 4 . . . . . Robot Analysis 9 | . 2 1 1 1 . . . . . . . . . 4 . . . . . Prototype ID Bank 4 | . . . . . . . . . . . . . . 4 . . . . . Open Door 4 | . . . . 2 . . . . . . . . 1 . . . 1 . . Open DSF 4 | . . . . . . 1 . 1 . . . . . . . 1 . . 1 Branch Access Points 1 | . . . . . 1 . . . . . . . . . . . . . . Terminal Index 1 | . . . . . . . . 1 . . . . . . . . . . . Alert Level 3 | . . 1 . . 1 . . . . . . . . . . . 1 . . Locate Traps 5 | . 3 1 . . . . . . . . . . . . . 1 . . . Recall Investigation 1 | . . . . . . . . . . . . . . . . . 1 . . Fabricator Hacks 3 | . . . . . . . . 1 . . 1 . . . . 1 . . . Network Status 1 | . . . . . . . . 1 . . . . . . . . . . . Load Schematic 1 | . . . . . . . . . . . . . . . . 1 . . . Build 1 | . . . . . . . . . . . 1 . . . . . . . . Repair Station Hacks 8 | . . 6 . . . . . 2 . . . . . . . . . . . Scan Component 4 | . . 3 . . . . . 1 . . . . . . . . . . . Repair 4 | . . 3 . . . . . 1 . . . . . . . . . . . Recycling Unit Hacks . | . . . . . . . . . . . . . . . . . . . . Scanalyzer 9 | . . 7 2 . . . . . . . . . . . . . . . . Insert Component 2 | . . 1 1 . . . . . . . . . . . . . . . . Analyze 4 | . . 3 1 . . . . . . . . . . . . . . . . Retrieve Study 3 | . . 3 . . . . . . . . . . . . . . . . . Garrison Access Hacks 4 | . . . . . . 1 . 1 . . 1 . . . . . 1 . . Seal Access 4 | . . . . . . 1 . 1 . . 1 . . . . . 1 . . Unauthorized Hacks 12 | . 3 2 1 1 2 . . 1 . . . . . . . 1 1 . . Terminals 9 | . 2 2 1 1 2 . . 1 . . . . . . . . . . . Botnet 9 | . 2 2 1 1 2 . . 1 . . . . . . . . . . . Fabricators 1 | . . . . . . . . . . . . . . . . 1 . . . Recompile 1 | . . . . . . . . . . . . . . . . 1 . . . Repair Stations 1 | . . . . . . . . . . . . . . . . . 1 . . Mechanics 1 | . . . . . . . . . . . . . . . . . 1 . . Recycling Units 1 | . 1 . . . . . . . . . . . . . . . . . . Reject 1 | . 1 . . . . . . . . . . . . . . . . . . Scanalyzers . | . . . . . . . . . . . . . . . . . . . . Garrison Access . | . . . . . . . . . . . . . . . . . . . . Data Cores Recovered . | . . . . . . . . . . . . . . . . . . . . Used . | . . . . . . . . . . . . . . . . . . . . Hacking Detections 43 | . 5 5 4 3 6 2 . 6 . . 2 . . . . 2 5 2 1 Full Trace Events 6 | . . 2 . 1 1 . . 1 . . . . . . . . . 1 . Feedback Events . | . . . . . . . . . . . . . . . . . . . . Feedback Blocked . | . . . . . . . . . . . . . . . . . . . . Robot Schematics Acquired 3 | . . . . . . . . . . . . . . . . . 3 . . Robots Built . | . . . . . . . . . . . . . . . . . . . . Authchips . | . . . . . . . . . . . . . . . . . . . . Time 93 | . . . . . . . . . . . 93 . . . . . . . . Total Robot Build Rating . | . . . . . . . . . . . . . . . . . . . . Part Schematics Acquired 19 | . 2 1 1 . 3 . . . . . . . . 4 . . 8 . . Parts Built . | . . . . . . . . . . . . . . . . . . . . Authchips . | . . . . . . . . . . . . . . . . . . . . Time . | . . . . . . . . . . . . . . . . . . . . Total Part Build Rating . | . . . . . . . . . . . . . . . . . . . . Part Studies Acquired 3 | . . 3 . . . . . . . . . . . . . . . . . Parts Repaired 4 | . . 3 . . . . . 1 . . . . . . . . . . . Time 116 | . . 78 . . . . . 38 . . . . . . . . . . . Parts Recycled . | . . . . . . . . . . . . . . . . . . . . Recycled Matter . | . . . . . . . . . . . . . . . . . . . . Retrieved Matter . | . . . . . . . . . . . . . . . . . . . . Retrieved Components . | . . . . . . . . . . . . . . . . . . . . Parts Scanalyzed 2 | . . 1 1 . . . . . . . . . . . . . . . . Part Schematics Acquired 2 | . . 1 1 . . . . . . . . . . . . . . . . Parts Damaged 1 | . . 1 . . . . . . . . . . . . . . . . . Bothacking | -11 -10 -9 -8 -8 -8 -6 -6 -5 -5 -5 -4 -4 -4 -4 -3 -3 -3 -3 -2 ------------ Run | Yrd Mat Mat Mat Sto Rec Fac DSF Fac Upp Upp Fac Upp Upp Zhi Pro Res Qua Sec Res Used RIF Installer . | . . . . . . . . . . . . . . . . . . . . Robots Hacked . | . . . . . . . . . . . . . . . . . . . . Non-combat . | . . . . . . . . . . . . . . . . . . . . Combat . | . . . . . . . . . . . . . . . . . . . . Robot Hacks Applied . | . . . . . . . . . . . . . . . . . . . . Relay Couplers Released 4 | . . . . . . . . 4 . . . . . . . . . . . Programmers 4 | . . . . . . . . 4 . . . . . . . . . . . Fabnet Peak Effective % . | . . . . . . . . . . . . . . . . . . . . Robots Rewired 14 | . . . . . 14 . . . . . . . . . . . . . . Allies Hacked . | . . . . . . . . . . . . . . . . . . . . Hacks Repelled . | . . . . . . . . . . . . . . . . . . . . Allies | -11 -10 -9 -8 -8 -8 -6 -6 -5 -5 -5 -4 -4 -4 -4 -3 -3 -3 -3 -2 -------- Run | Yrd Mat Mat Mat Sto Rec Fac DSF Fac Upp Upp Fac Upp Upp Zhi Pro Res Qua Sec Res Total Allies 14 | . . . . . 14 . . . . . . . . . . . . . . Largest Group 12 | . . . . . 12 11 11 1 . . . . . . . . . . . Highest-Rated Group 216 | . . . . . 216 206 206 27 . . . . . . . . . . . Highest-Rated Ally 34 | . . . . . 34 34 34 27 . . . . . . . . . . . Initial Warlord ECA Mod 9 | . . . . . . . . 9 9 9 8 8 8 8 7 7 6 6 5 Warlord Squad Rendezvous 1 | . . . . . . . . . . . . . . . . 1 . . . Muscle 1 | . . . . . . . . . . . . . . . . 1 . . . Total Orders 2 | . . . . . 2 . . . . . . . . . . . . . . FOLLOW 1 | . . . . . 1 . . . . . . . . . . . . . . COLLECT 1 | . . . . . 1 . . . . . . . . . . . . . . Ally Attacks 28 | . . . . . 15 . 13 . . . . . . . . . . . . Total Damage 459 | . . . . . 171 . 288 . . . . . . . . . . . . Kills 2 | . . . . . 1 . 1 . . . . . . . . . . . . Allies Corrupted . | . . . . . . . . . . . . . . . . . . . . Allies Melted . | . . . . . . . . . . . . . . . . . . . . Intel | -11 -10 -9 -8 -8 -8 -6 -6 -5 -5 -5 -4 -4 -4 -4 -3 -3 -3 -3 -2 ------- Run | Yrd Mat Mat Mat Sto Rec Fac DSF Fac Upp Upp Fac Upp Upp Zhi Pro Res Qua Sec Res Active Infowar (turns) 2123 | . . . . . . 237 238 1135 . 18 37 . . . . 119 87 84 168 Sensors 1665 | . . . . . . 237 238 1135 . 18 37 . . . . . . . . Cloaking 206 | . . . . . . . . . . . . . . . . 119 87 . . ECM 252 | . . . . . . . . . . . . . . . . . . 84 168 Robot Analysis Total 9 | . 2 1 1 1 . . . . . . . . . 4 . . . . . Derelict Logs Recovered 6 | . . . . . . . . . 3 1 . 2 . . . . . . . Drone Launches . | . . . . . . . . . . . . . . . . . . . . Drone Recoveries . | . . . . . . . . . . . . . . . . . . . . Exploration | -11 -10 -9 -8 -8 -8 -6 -6 -5 -5 -5 -4 -4 -4 -4 -3 -3 -3 -3 -2 ------------- Run | Yrd Mat Mat Mat Sto Rec Fac DSF Fac Upp Upp Fac Upp Upp Zhi Pro Res Qua Sec Res Turns Passed 13459 | 115 892 2071 875 1104 951 239 238 1692 390 26 463 267 202 704 790 363 1591 175 311 Spaces Moved 9013 | 66 460 685 369 522 481 137 105 729 343 46 650 537 387 684 614 437 1206 179 376 Core 806 | 4 . . . . . . . 98 199 46 5 . . 2 . . 214 114 124 Treads 4279 | 62 460 685 369 522 481 137 105 631 144 . . . . . . . 630 . 53 Legs 1241 | . . . . . . . . . . . . . . 498 614 13 . 65 51 Wheels 181 | . . . . . . . . . . . 181 . . . . . . . . Hover 976 | . . . . . . . . . . . 42 . . . . 424 362 . 148 Flight 1530 | . . . . . . . . . . . 422 537 387 184 . . . . . Fastest Speed 28 | 50 160 160 152 152 152 156 156 50 50 50 28 35 35 35 120 44 48 50 36 Average Speed 115 | 153 160 230 158 152 154 156 156 149 98 50 57 35 37 97 120 48 106 80 68 Slowest Speed 480 | 160 160 240 160 152 155 156 156 480 170 50 205 42 42 250 120 210 160 200 160 Overloaded Moves . | . . . . . . . . . . . . . . . . . . . . Propulsion Burnouts . | . . . . . . . . . . . . . . . . . . . . Robots Hopped . | . . . . . . . . . . . . . . . . . . . . Potential Cave-ins 7 | . . . . . . . . 4 . . . 3 . . . . . . . Cave-ins Triggered . | . . . . . . . . . . . . . . . . . . . . Teleports 1 | . . . . . . . . . . . . . . 1 . . . . . Exploration Rate (%) 43 | 4 78 61 40 63 82 3 78 22 54 11 19 66 50 62 70 13 68 11 19 Regions Visited 19 Branch Regions 10 Pre-discovered Areas 7 | . . . . 1 . . . . 3 . . . . 3 . . . . . Known Exits Taken 8 | . . . . . . 1 . 1 1 . . 1 1 1 1 1 . . . Unknown Exits Taken 10 | 1 1 1 1 1 1 . . . . 1 1 . . . . . 1 1 . Scrap Searched 3 | . . . . . . . . . 1 1 . . . . 1 . . . . Spaces Dug 13 | . . . . . . . . 1 . . . 6 1 . . 3 2 . . Terrain Destroyed 404 | . . . 15 26 . . . 163 1 . 3 14 8 . . 3 33 130 8 Melee 5 | . . . . . . . . 1 . . . . . . . 3 1 . . Projectile 93 | . . . . . . . . 35 1 . 3 14 8 . . . 32 . . AOE 306 | . . . 15 26 . . . 127 . . . . . . . . . 130 8 Terrain Rammed . | . . . . . . . . . . . . . . . . . . . . Walls Destroyed . | . . . . . . . . . . . . . . . . . . . . Machines Disabled . | . . . . . . . . . . . . . . . . . . . . Actions | -11 -10 -9 -8 -8 -8 -6 -6 -5 -5 -5 -4 -4 -4 -4 -3 -3 -3 -3 -2 --------- Run | Yrd Mat Mat Mat Sto Rec Fac DSF Fac Upp Upp Fac Upp Upp Zhi Pro Res Qua Sec Res Total 11032 | 77 562 989 546 672 658 160 145 1168 373 47 712 579 420 723 645 539 1394 200 423 Wait 770 | . 52 158 75 33 13 15 10 291 9 . 10 18 3 . 2 24 32 . 25 Move 8993 | 65 459 684 368 521 480 136 104 728 342 45 648 536 386 683 613 436 1205 178 376 Hop . | . . . . . . . . . . . . . . . . . . . . Pick Up 96 | 6 6 19 11 7 . 1 5 12 . . 2 . 5 9 1 6 6 . . Fast Attach 127 | 6 1 3 1 3 . . . 12 5 2 16 2 8 10 4 12 31 4 7 Attach 48 | . 1 3 3 3 . 4 . 16 1 . 4 1 1 3 1 . 3 3 1 Detach 19 | . . 2 . . . . . 1 2 . . . . . . . 8 2 4 Swap 118 | . 4 13 14 20 1 4 5 33 . . . . 2 2 2 10 8 . . Drop 135 | . 6 13 18 14 1 . 6 8 2 . 4 . 2 16 2 11 30 . 2 Fire 449 | . 30 89 53 67 13 . 14 63 11 . 10 22 11 . . 3 51 8 4 Melee 79 | . . . . 4 . . . 1 . . . . 2 . 20 37 15 . . Ram 7 | . . . . . . . . . . . 5 . . . . . 2 . . Kick . | . . . . . . . . . . . . . . . . . . . . Crush 20 | . 3 5 3 . 1 . . 3 1 . . . . . . . . . 4 Escape Stasis 21 | . . . . . . . . . . . 13 . . . . . 3 5 . Rewire 150 | . . . . . 149 . 1 . . . . . . . . . . . . Trap . | . . . . . . . . . . . . . . . . . . . . Miscellaneous . | . . . . . . . . . . . . . . . . . . . . Route ------- -11/Scrapyard -10/Materials (discovered 4 exits: *Mat x2 / [*Min x2]) -9/Materials (discovered 3 exits: *Mat x2 / [*Min]) -8/Materials (discovered 2 exits: [*Fac] / *Sto) -8/Storage -8/Recycling -6/Factory -6/DSF -5/Factory -5/Upper Caves -5/Upper Caves -4/Factory -4/Upper Caves -4/Upper Caves (discovered 2 exits: *Res / *Zhi) -4/Zhirov -3/Proximity Caves -3/Research -3/Quarantine (discovered 2 exits: *Sec / [*Frg]) -3/Section 7 -2/Research History --------- Turn | Location | Event 2 | -11/Scrapyard | Met Revision 17 66 | -11/Scrapyard | Discovered new exit (range 15) 116 | -11/Scrapyard | Entered Materials 161 | -10/Materials | Discovered new exit (range 16) 178 | -10/Materials | Discovered new exit (range 12) 306 | -10/Materials | Discovered new exit (range 16) 313 | -10/Materials | Build established: Mutant 730 | -10/Materials | Discovered new exit (range 16) 1008 | -10/Materials | Entered another Materials area 1008 | -9/Materials | Evolved 2 slots: Utility x1, Weapon x1 1124 | -9/Materials | Discovered new exit (range 6) 1743 | -9/Materials | Build established: Gunner 2142 | -9/Materials | Discovered new exit (range 10) 2440 | -9/Materials | Discovered new exit (range 16) 2735 | -9/Materials | Repaired Lgt. Armor Plating 2763 | -9/Materials | Repaired Lgt. Armor Plating 2790 | -9/Materials | Repaired Assault Rifle 3079 | -9/Materials | Entered another Materials area 3079 | -8/Materials | Evolved 2 slots: Propulsion x2 3632 | -8/Materials | Central database locked down 3804 | -8/Materials | Garrison activated, responded to threat 3889 | -8/Materials | Discovered new exit (range 15) 3947 | -8/Materials | Discovered new exit (range 14) 3954 | -8/Materials | Entered Storage 4306 | -8/Storage | Learned location of Armory (-3) 4558 | -8/Storage | Lost 3 parts (1u2w) 5005 | -8/Storage | Met 01-MTF 5051 | -8/Storage | Discovered new exit (range 3) 5058 | -8/Storage | Entered Recycling 5058 | -8/Recycling | Accompanied by 1 ally (01-MTF) 5467 | -8/Recycling | Build established: Commander-Gunner 5927 | -8/Recycling | Discovered new exit (range 16) 6009 | -8/Recycling | Entered Factory 6009 | -6/Factory | Accompanied by 11 allies 6009 | -6/Factory | Evolved 4 slots: Propulsion x1, Utility x2, Weapon x1 6228 | -6/Factory | Identified exit to DSF 6248 | -6/Factory | Entered DSF 6248 | -6/DSF | Accompanied by 11 allies 6276 | -6/DSF | Additional patrols routed to DSF 6369 | -6/DSF | Lost 10 allies 6400 | -6/DSF | Sterilization system engaged 6420 | -6/DSF | Ambient heat levels rising (+10) 6435 | -6/DSF | Ambient heat levels rising (+10) 6450 | -6/DSF | Ambient heat levels rising (+10) 6460 | -6/DSF | Discovered new exit (range 16) 6465 | -6/DSF | Ambient heat levels rising (+10) 6480 | -6/DSF | Ambient heat levels rising (+10) 6483 | -6/DSF | Identified exit to Factory 6486 | -6/DSF | Entered Factory 6486 | -5/Factory | Accompanied by 1 ally 6486 | -5/Factory | Evolved 2 slots: Weapon x2 6783 | -5/Factory | Build established: Scavenger-Executioner 7001 | -5/Factory | Repaired Adv. Treads 7686 | -5/Factory | First assault squad dispatched 8086 | -5/Factory | Released all parts (8) 8117 | -5/Factory | Lost 11 parts (5n1u5w) 8140 | -5/Factory | Discovered new exit (range 7) 8164 | -5/Factory | Identified exit to Upper Caves 8178 | -5/Factory | Entered Upper Caves 8185 | -5/Upper Caves | Met a Warlord Commander 8186 | -5/Upper Caves | Learned location of Warlord (-5) 8187 | -5/Upper Caves | Warlord Commander delivered Encrypted Comm Array 8192 | -5/Upper Caves | Found Encrypted Comm Array 8209 | -5/Upper Caves | Identified exit to Upper Caves 8376 | -5/Upper Caves | Build established: Mutant 8409 | -5/Upper Caves | Attracted the attention of an 0b10 checkpoint 8440 | -5/Upper Caves | Core integrity fell below 50% 8495 | -5/Upper Caves | Lost 4 parts (3n1u) 8568 | -5/Upper Caves | Entered another Upper Caves area 8582 | -5/Upper Caves | Learned Factory garrison access intel 8588 | -5/Upper Caves | Discovered new exit (range 12) 8594 | -5/Upper Caves | Entered Factory 8594 | -4/Factory | Evolved 2 slots: Utility x2 8595 | -4/Factory | Loaded intel: 4 garrison access locations 8782 | -4/Factory | Spotted B-86 Titan 8851 | -4/Factory | Lost 4 parts (1n1u2w) 9039 | -4/Factory | Discovered new exit (range 16) 9057 | -4/Factory | Entered Upper Caves 9097 | -4/Upper Caves | Lost 5 parts (3u2w) 9206 | -4/Upper Caves | Attracted the attention of an 0b10 checkpoint 9236 | -4/Upper Caves | Learned Research stockpile data 9268 | -4/Upper Caves | Spotted B-86 Titan 9320 | -4/Upper Caves | Learned location of 1 exit from Research 9322 | -4/Upper Caves | Discovered new exit (range 5) 9323 | -4/Upper Caves | Identified exit to Upper Caves 9324 | -4/Upper Caves | Entered another Upper Caves area 9344 | -4/Upper Caves | Discovered new exit (range 9) 9347 | -4/Upper Caves | Identified exit to Research 9409 | -4/Upper Caves | Core integrity fell below 50% 9433 | -4/Upper Caves | Lost 4 parts (1p1u2w) 9467 | -4/Upper Caves | Attracted the attention of an 0b10 checkpoint 9524 | -4/Upper Caves | Discovered new exit (range 8) 9526 | -4/Upper Caves | Identified exit to Zhirov 9526 | -4/Upper Caves | Entered Zhirov 9526 | -4/Zhirov | Discovered new exit (range 3) 9527 | -4/Zhirov | Identified exit to Proximity Caves 9533 | -4/Zhirov | Met Zhirov 9561 | -4/Zhirov | Learned location of Quarantine (-3) 9561 | -4/Zhirov | Learned location of Testing (-2) 9561 | -4/Zhirov | Learned location of Command (-1) 9569 | -4/Zhirov | Zhirov requested help retrieving the SGEMP Prototype 9690 | -4/Zhirov | Found Alien Artifact 9690 | -4/Zhirov | Identified Integrated Reactor 9690 | -4/Zhirov | Installed Integrated Reactor, increased core energy generation (+10) 9705 | -4/Zhirov | Found Alien Artifact 9705 | -4/Zhirov | Identified Transdimensional Reconstructor 9705 | -4/Zhirov | Warped through subspace 10230 | -4/Zhirov | Entered Proximity Caves 10331 | -3/Proximity Caves | Attracted the attention of an 0b10 checkpoint 10480 | -3/Proximity Caves | Lost 4 parts (1p1n2w) 10677 | -3/Proximity Caves | Build established: Derelict-Mutant 10990 | -3/Proximity Caves | Discovered exit to Research (range 11) 11020 | -3/Proximity Caves | Entered Research 11020 | -3/Research | Evolved 2 slots: Utility x2 11021 | -3/Research | Identified exit to Quarantine 11134 | -3/Research | Joined by Warlord Muscle squad 11359 | -3/Research | Central database locked down 11367 | -3/Research | Spotted B-90 Cyclops 11383 | -3/Research | Entered Quarantine 11570 | -3/Quarantine | Found Alien Impact Weapon 11570 | -3/Quarantine | Identified Core Stripper 11597 | -3/Quarantine | Spotted Fortress 11608 | -3/Quarantine | Destroyed Fortress 11612 | -3/Quarantine | Found Prototype Protection 11612 | -3/Quarantine | Identified Centrium Heavy Armor Plating 11629 | -3/Quarantine | Found Prototype Device 11629 | -3/Quarantine | Identified Exp. EM Shield 11634 | -3/Quarantine | Found Prototype Device 11634 | -3/Quarantine | Identified Exp. Force Field 11638 | -3/Quarantine | Lost 3 parts (1n2u) 11645 | -3/Quarantine | Found Prototype Device 11645 | -3/Quarantine | Identified Thermal Barrier 11667 | -3/Quarantine | Found Prototype Reactor 11718 | -3/Quarantine | Build established: Mutant 11799 | -3/Quarantine | Discovered new exit (range 6) 11799 | -3/Quarantine | Discovered new exit (range 6) 12198 | -3/Quarantine | Found Alien Artifact 12198 | -3/Quarantine | Identified Phase Armor 12471 | -3/Quarantine | Found Alien Artifact 12471 | -3/Quarantine | Identified Subatomic Replicator 12572 | -3/Quarantine | Met incapacitated Sigix Warrior 12572 | -3/Quarantine | Lockdown squad dispatched 12576 | -3/Quarantine | Acquired the access code to the Sigix quarantine chamber 12580 | -3/Quarantine | Unlocked Sigix quarantine chamber 12593 | -3/Quarantine | Found Sigix Containment Pod 12647 | -3/Quarantine | Spotted Lightning 12654 | -3/Quarantine | Scanned by Researcher 12677 | -3/Quarantine | Spotted Lightning 12681 | -3/Quarantine | Build established: Tank 12681 | -3/Quarantine | Spotted Lightning 12696 | -3/Quarantine | Destroyed Lightning 12750 | -3/Quarantine | System corruption reached 10% 12848 | -3/Quarantine | Lost 13 parts (3p1n5u4w) 12881 | -3/Quarantine | Cryocooling Duct disabled 12896 | -3/Quarantine | Ambient heat levels rising (+20) 12896 | -3/Quarantine | Non-combat units ordered to evacuate 12927 | -3/Quarantine | Found Hvy. Insulated Plating 12974 | -3/Quarantine | Entered Section 7 12975 | -3/Section 7 | Lost 4 parts (4u) 13009 | -3/Section 7 | Build established: Mutant 13037 | -3/Section 7 | Found Alien Artifact 13037 | -3/Section 7 | Identified Integrated Mediator 13037 | -3/Section 7 | Installed Integrated Mediator, increased core attachment efficiency 13127 | -3/Section 7 | Spotted S7 Guard 13130 | -3/Section 7 | Scanned by Researcher 13143 | -3/Section 7 | Discovered new exit (range 7) 13149 | -3/Section 7 | Entered Research 13149 | -2/Research | Evolved 2 slots: Power x1, Propulsion x1 13343 | -2/Research | Core integrity fell below 50% 13364 | -2/Research | Lost 5 parts (3n1u1w) 13399 | -2/Research | Search patrols dispatched 13425 | -2/Research | Core integrity fell below 20% 13460 | -2/Research | Destroyed by S-43 Plague with Heavy Machine Gun Last Messages --------------- 13403_ Acquired Adv. Heavy Siege Treads. 13406_ Acquired Imp. Power Shielding. 13411_ Acquired Prototype Energy Gun. 13411_ Identified Prc. Phase Gun. 13417_ Drone sends a signal. 13420_ Imp. Linear Gravjet destroyed. 13423_ Slug penetrates Wall. 13426_ Slammed into G-73 Enforcer. 13426_ Slug penetrates Wall. 13429_ Penetrated by Slug. 13429_ Slug penetrates Door. 13430_ ALERT: Potential suspicious activity detected, Q-Series report to Research Zone 2R. 13430_ Q138-d: IFF CHECK FAIL. [Achievement: Tailor-made] 13430_ Penetrated by Slug. 13453_ K-01 Serf cleans the Terminal. 13454_ Adv. Heavy Siege Treads destroyed. 13459_ O-32 Director: "IFF HANDSHAKE FAILED. SECURING TERMINAL." Map ----- +----------------------------------------------------+ | + """"????##+##### #?????#????????????????? | | # """ ????# #??????????????????????? | | #?? ???# #####+#??????????????????????? | | #???? #??# #???? ???????????????????????? | | # #??????####??# #???? ???????????????????????? | | # #????????????# #???? ???????????????????????? | | # #????????????# #???? ???????????????????????? | | +????????????# #####+#??????????????????????? | | #????????????# #??????????????????????? | | #????????????# #?????####?????????????? | | #???????????## ##### ????????????? | | ######????????#### s #?????????????? | | ??????????????+ #?????????????? | | ??????????????## * u #?????????????? | | ???????????????# ##### #?????????????? | | ???????????????#" #??????????????????????? | | ???????????????#"" #??????????????????????? | | ???????????????#"" #??????????????????????? | | ???????????????#"" #?###+##???????????????? | | ???????????????#"" #? #???????????????? | | ???????????????#"T u # #???????????????? | | ???????????????#"" # #???????????????? | | ???????????????#"" + ! #???????????????? | | ???????????????#"" u # #???????????????? | | ???????????????#""k # #???????????????? | | ???????????????#" k @#?######???????????????? | | ???????????????# ?????????????????????? | | ???????????? ???????????????????? | | ??????????? o ?????????????????? | | ??????????? u u ???????????????? | | ???????????? ?????????????? | | ???????????? A ???????????? | | ????????????##+### ??????????? | | ?????????????????#A ########## ???????????? | | ?????????????????# ?????????? ???????????? | | ?????????????????# ??????????? ????????????? | | ?????????????????#k ???????????? k????????????? | | ?????????????????# ???????????????????????????? | | ?????????????????? w???????????????????????????? | | ????????????????????? ???????????????????????????? | | ?????????????????????????????????????????????????? | | ?????????????????????????????????????????????????? | | ?????????????????????????????????????????????????? | | ?????????????????????????????????????????????????? | | ?????????????????????????????????????????????????? | | ?????????????????????????????????????????????????? | | ?????????????????????????????????????????????????? | | ?????????????????????????????????????????????????? | | ?????????????????????????????????????????????????? | | ?????????????????????????????????????????????????? | +----------------------------------------------------+ Best States ------------- Heat Dissipation 136 Energy Generation 49 Energy Capacity 815 Matter Stores 300 Matter Capacity 300 Sight Range 16 Robot Scan Range 16 Terrain Scan Density 10 ECM Strength 1 Cloak Strength 3 Power Amplification 60 EM Shielding 4 Armor Coverage 600 Resistance: KI 20 Resistance: TH 50 Resistance: EX 25 Resistance: EM 75 Power Shielding 66 Utility Shielding 90 Weapon Shielding 90 Phase Shifting 10 Evasion (%) 75 Targeting Accuracy 6 Core Analysis 6 Armor Integrity Analysis 30 Recoil Reduction 5 Matter Filtering 50 Particle Charging 30 Offensive Hacking 14 Authchip Count 1 Item Schematics ----------------- Hcp. Storage Unit | -10/Materials | Hacked ECM Suite | -10/Materials | Hacked Imp. Medium Laser | -9/Materials | Scanalyzed Adv. Treads | -8/Materials | Scanalyzed Imp. Medium Treads | -8/Recycling | Hacked Matter Compressor | -8/Recycling | Hacked Powered Armor | -8/Recycling | Hacked Assault Drone Bay | -4/Zhirov | Free Exp. Heat Sink | -4/Zhirov | Free Exp. Optical Array | -4/Zhirov | Free Imp. Arc Thrower | -4/Zhirov | Free Lgt. Antimatter Cannon | -3/Quarantine | Archive Enh. Coil Gun | -3/Quarantine | Archive Cld. Fission Core | -3/Quarantine | Archive Hvy. Dispersion Rifle | -3/Quarantine | Archive Adv. Kinecellerator | -3/Quarantine | Archive Mni. Fusion Reactor | -3/Quarantine | Archive Hvy. Proton Cannon | -3/Quarantine | Archive Electron Diverter | -3/Quarantine | Archive Robot Schematics ------------------ B-74 Champion | -3/Quarantine | Archive A-27 Freighter | -3/Quarantine | Archive E-15 Imp | -3/Quarantine | Archive Fabricated ------------ Nothing Repaired ---------- Lgt. Armor Plating | 14% | -9/Materials Lgt. Armor Plating | 27% | -9/Materials Assault Rifle | 20% | -9/Materials Adv. Treads | 6% | -5/Factory Studied --------- Arm. Wheel | -9/Materials | Hacked Beam Cannon | -9/Materials | Hacked Hvy. Assault Rifle | -9/Materials | Hacked Alien Tech Used ----------------- Integrated Reactor Transdimensional Reconstructor Core Stripper Phase Armor Subatomic Replicator Integrated Mediator Achievements -------------- Ambidextrous Bending The Rules False Reunion Hot Goods I Like You, Cogmind Nope Ooh, Shiny! Partsplosion Signature Confirmed Subspace Traveler Sunderer Tailor-made The Science Guy Ultimate Loadout Challenges ------------ None Game ------ Seed SubdwellerVortexSpiker Manual? 0 Play Time 03:32:02 Cumulative 59.5 hours Start 2026.07.14 @ 20:27:58 End 2026.07.15 @ 04:53:00 Sessions 3 Manual Loads 0 Difficulty Rogue Special Mode None Game No. 43 Rogue 43 Adventurer 0 Explorer 0 Win Type - Total 1 Types 1/0/0/0/0/0/0/0/0/0 Lore% 46 Gallery% 37 Achievement% 36 Wizard Run 0 Options --------- Layout 1 ASCII 0 Keyboard 1 Movement Arrows Keybinds 0 Fullscreen 1 Font 24/Smallcaps Map View 50x35 Zoom Use 0% Tactical HUD 1 Map Filters NONE Filters NONE Steam 1 RUN: 5f6d3203-5756-4544-8628-fdfda829dbe7